[Event "Hungarian Youth-ch U18 2022"]
[Site "Eger"]
[Date "2022.07.27"]
[Round "5.1"]
[White "Virag, Balint"]
[Black "Baski, Barnabas"]
[Result "1-0"]
[ECO "C84"]
[WhiteElo "2164"]
[BlackElo "2142"]
[Annotator "TA"]
[PlyCount "85"]
[EventDate "2022.07.21"]
[EventType "tourn"]
[EventCountry "HUN"]
[SourceTitle "playchess.com"]
[Source "ChessBase"]
[SourceQuality "1"]
[TimeControl "40/5400+30:1800+30"]

{[%evp 15,85,18,20,13,11,7,5,3,0,-5,-9,-71,-66,-97,-80,-105,-108,-132,-151,-167,-139,-112,-129,-116,-88,-101,-100,-137,-144,-124,-125,-158,-138,-153,-175,-163,-148,-150,-32,-26,0,0,0,-45,-14,-11,4,15,35,-33,-26,-38,26,33,36,0,40,33,35,34,60,37,29,32,32,31,320,302,739,723,762,694]} 1. e4 {[%emt 0:03:34]} e5 {[%emt 0:00:41]} 2. Nf3 {[%emt 0:00:08]} Nc6 {[%emt 0:00:09]} 3. Bb5 {[%emt 0:00:06]} a6 {[%emt 0:00:12]} 4. Ba4 {[%emt 0:00:05]} Nf6 {[%emt 0:00:10]} 5. O-O {[%emt 0:00:11]} Be7 {[%emt 0:00:11]} 6. d3 {[%emt 0:00:07]} b5 {[%emt 0:01:10]} 7. Bb3 {[%emt 0:00:10]} d6 {[%emt 0:00:22]} 8. a4 {[%emt 0:00:08]} Bd7 {[%emt 0:01:09]} 9. h3 {[%emt 0:01:25] C84: Closed Ruy Lopez: Unusual White 6th moves.} O-O {[%emt 0:06:28]} 10. c3 {[%emt 0:00:23]} Na5 {[%emt 0:01:18]} 11. Bc2 {[%emt 0:00:24] The position is equal.} c5 {[%emt 0:00:37]} 12. d4 {[%emt 0:05:27]} Qc7 {[%emt 0:05:17] [#]} 13. b4 $146 {[%emt 0:11:19]} (13. d5 $11 {keeps the balance.}) ({Predecessor:} 13. d5 c4 14. Re1 Nb7 15. Nbd2 Rfe8 16. Nf1 Nc5 17. Ne3 Rab8 18. axb5 axb5 19. Nh4 Ncxe4 {0-1 (64) Sukandar,I (2392)-Nithyalakshmi,S (1945) Chess.com INT 2022}) 13... cxb4 $1 $17 {[%emt 0:06:15]} 14. cxb4 {[%emt 0:00:09]} Nc6 {[%emt 0:03:45][%cal Ba5c6,Bc6b4,Bb4c2][%mdl 32]} 15. Ba3 {[%emt 0:01:09]} exd4 {[%emt 0:09:08]} 16. axb5 {[%emt 0:06:00]} axb5 {[%emt 0:00:22]} 17. Re1 {[%emt 0:01:46]} Nxb4 {[%emt 0:09:40]} 18. Nxd4 {[%emt 0:08:33]} Nxc2 {[%emt 0:00:27]} 19. Nxc2 {[%emt 0:00:05]} Rfe8 {[%emt 0:10:47]} 20. Nd2 {[%emt 0:01:08]} Ra4 {[%emt 0:02:36]} 21. Rc1 {[%emt 0:02:20]} Qb7 {[%emt 0:01:00]} 22. Bb4 {[%emt 0:07:04]} Bf8 {[%emt 0:02:12]} 23. f3 {[%emt 0:00:56]} Be6 {[%emt 0:08:03] Hoping for ...Rc8.} 24. Nb1 {[%emt 0:02:09]} d5 {[%emt 0:02:27]} 25. Bxf8 {[%emt 0:01:24]} Rxf8 {[%emt 0:00:10]} 26. Nc3 {[%emt 0:00:08] [#]} Raa8 {[%emt 0:06:22]} ({Not} 26... dxe4 27. Nxa4 bxa4 28. fxe4 $11) (26... Rc4 $1 $17 {[%cal Rc4c3]} 27. exd5 Qb6+ 28. Ne3 {[#]} Nxd5 $1 {[%mdl 512]} 29. Ncxd5 Bxd5 30. Rxc4 Bxc4) 27. e5 $1 $15 {[%emt 0:00:27]} Ne8 {[%emt 0:07:35][%cal Bf6e8,Be8c7,Bc7a6,Ba6c5,Bc5e4][%mdl 32]} 28. Rb1 {[%emt 0:00:14]} Nc7 {[%emt 0:00:17]} 29. Qd3 {[%emt 0:01:35][%cal Rc3b5] Against Bf5} Rab8 {[%emt 0:01:31]} (29... g6 $5 {[%cal Re6f5]}) 30. Rb2 {[%emt 0:04:50]} d4 {[%emt 0:02:44]} 31. Qxd4 {[%emt 0:01:53]} Rfd8 {[%emt 0:00:14]} 32. Qc5 {[%emt 0:03:38]} (32. Qf2 $14) 32... Na6 {[%emt 0:00:59]} 33. Qe3 {[%emt 0:01:10]} Bc4 {[%emt 0:03:20]} (33... b4 $15) 34. Ne4 $11 {[%emt 0:02:55]} Rd3 {[%emt 0:04:04]} 35. Qg5 {[%emt 0:01:02]} (35. Qf2 $5 {[%cal Re4d6]}) 35... Qa7+ {[%emt 0:01:30]} 36. Kh1 {[%emt 0:00:45]} Nc5 {[%emt 0:01:24]} 37. Nb4 {[%emt 0:08:29] Black must now prevent Nf6+. Pair of Knights!} h6 {[%emt 0:02:18]} 38. Qh4 {[%emt 0:04:07] Threatens to win with Nc6.} (38. Qf4 $5 {[%cal Re4c5]} Rdd8 39. Qe3 $16) 38... Nxe4 $1 {[%emt 0:01:47]} 39. Nxd3 {[%emt 0:01:23]} Bxd3 {[%emt 0:00:30]} 40. fxe4 {[%emt 0:00:00][%cal Oe5e6]} Qd4 $2 {[%emt 0:00:00][%mdl 8192]} ({Black should try} 40... Bc4 $14) 41. Rd2 $18 {[%emt 0:02:51]} Qc4 $2 {[%emt 0:04:26]} (41... Qc3 42. Qf4 Qb4) 42. e6 {[%emt 0:01:05]} fxe6 {[%emt 0:00:47]} 43. Qg3 {[%emt 0:00:14][%csl LRb8,LRd3] Quite a comeback for White.  Weighted Error Value: White=0.16 (very precise) /Black=0.32} 1-0

[Event "Hungarian Youth-ch U18 2022"]
[Site "Eger"]
[Date "2022.07.27"]
[Round "5.2"]
[White "Juhasz, Agoston"]
[Black "Daroczi, Donat"]
[Result "1-0"]
[ECO "C11"]
[WhiteElo "2344"]
[BlackElo "2163"]
[Annotator "TA"]
[PlyCount "99"]
[EventDate "2022.07.21"]
[EventType "tourn"]
[EventCountry "HUN"]
[SourceTitle "playchess.com"]
[Source "ChessBase"]
[SourceQuality "1"]
[TimeControl "40/5400+30:1800+30"]

{[%evp 15,99,8,6,18,9,13,7,8,21,28,11,0,0,0,3,0,11,25,34,37,54,44,49,49,62,47,66,36,77,11,15,0,16,16,16,16,23,16,14,12,33,27,32,25,25,28,14,26,81,58,97,13,294,289,304,299,507,485,622,631,607,616,847,820,939,896,1008,1005,1024,1020,1082,1000,1785,1783,6211,29973,29967,7647,29979,29980,29980,29981,29980,29981,29981,29981]} 1. e4 {[%emt 0:00:34]} e6 {[%emt 0:01:04]} 2. d4 {[%emt 0:00:18]} d5 {[%emt 0:00:07]} 3. Nc3 {[%emt 0:00:13]} Nf6 {[%emt 0:00:06]} 4. Bg5 {[%emt 0:00:23]} dxe4 {[%emt 0:00:08]} 5. Nxe4 {[%emt 0:00:06]} Be7 {[%emt 0:00:05]} 6. Nxf6+ {[%emt 0:00:30]} Bxf6 {[%emt 0:00:01]} 7. Bxf6 {[%emt 0:00:14]} Qxf6 {[%emt 0:00:11]} 8. Nf3 {[%emt 0:00:05]} O-O {[%emt 0:06:26][%cal Oc7c5]} 9. Qd3 $1 {[%emt 0:00:18][%mdl 4] is more profitable than 9.Bd3 at the moment. C13: French: Classical System: 4 Bg5 Be7, Alekhine-Chatard Attack.} c5 {[%emt 0:02:56]} 10. O-O-O {[%emt 0:00:42]} Rd8 {[%emt 0:03:58]} 11. Qe4 {[%emt 0:01:30] The position is equal.} Nc6 {[%emt 0:07:28]} 12. Bd3 $1 {[%emt 0:01:32]} Qh6+ {[%emt 0:02:39]} 13. Kb1 {[%emt 0:00:09]} Nxd4 {[%emt 0:07:59]} 14. Rhe1 {[%emt 0:02:08] [#]} Rb8 $146 {[%emt 0:11:12]} ({Predecessor:} 14... a5 15. Ne5 f6 16. Nc4 e5 17. Ne3 Be6 18. Qxb7 Qf4 19. f3 Rab8 20. Qa6 Kh8 21. c3 {½-½ (21) Kruse,H (2636)-Bernal Varela,N (2401) FICGS email 2018}) 15. Qe5 {[%emt 0:09:52]} Bd7 {[%emt 0:02:06]} (15... Nxf3 $5 16. gxf3 Bd7 $15) 16. Be4 {[%emt 0:13:47]} Bc6 {[%emt 0:07:01]} 17. Nxd4 {[%emt 0:04:24]} Bxe4 {[%emt 0:10:24]} 18. Rxe4 {[%emt 0:02:36][%cal Od1d3] Rd3! is the strong threat.} Rbc8 {[%emt 0:00:03]} 19. Rd3 $1 {[%emt 0:12:16][%cal Od4f5] Threatens to win with Nf5!} cxd4 {[%emt 0:01:05]} 20. Rexd4 {[%emt 0:01:06]} Rxd4 {[%emt 0:02:37]} 21. Qxd4 $14 {[%emt 0:00:36][%cal Od4d8][%mdl 4096] Endgame KQR-KQR} g6 {[%emt 0:00:27]} 22. h4 {[%emt 0:04:28]} (22. h3 $16) 22... Qh5 $11 {[%emt 0:03:22]} 23. Qe4 {[%emt 0:11:34] Prevents Qe2.} Qb5 {[%emt 0:03:14]} 24. a4 {[%emt 0:01:20]} Qb6 {[%emt 0:02:36]} 25. Qd4 {[%emt 0:05:27]} Qxd4 {[%emt 0:06:01]} 26. Rxd4 {[%emt 0:00:02] next Rd7 is good for White. KR-KR} Rc7 {[%emt 0:00:01] Against Rd7} 27. b4 {[%emt 0:02:13]} f5 {[%emt 0:01:34]} 28. Kb2 {[%emt 0:02:59]} Kf7 {[%emt 0:00:21]} 29. Rd8 {[%emt 0:00:53]} e5 {[%emt 0:03:27]} 30. a5 {[%emt 0:03:46]} e4 {[%emt 0:02:47]} 31. g3 {[%emt 0:08:18]} a6 {[%emt 0:01:15]} (31... Ke7 $11 32. Rb8 Kd6) 32. c4 $16 {[%emt 0:01:17]} h6 {[%emt 0:04:43]} 33. Rd6 {[%emt 0:05:19]} ({White should try} 33. Kc3 $16) 33... Kg7 $2 {[%emt 0:08:59][%mdl 8192] Loses the game.} (33... Rxc4 $11 {and Black has nothing to worry.} 34. Rd7+ Ke6 35. Rxb7 g5) 34. Kc3 $18 {[%emt 0:00:37]} g5 {[%emt 0:00:08] [#]} 35. h5 $1 {[%emt 0:02:07]} Rf7 $2 {[%emt 0:00:57]} (35... f4 {is a better defense.} 36. gxf4 gxf4 37. Rg6+ Kf7) 36. Rg6+ {[%emt 0:03:06]} Kf8 {[%emt 0:00:20]} 37. Kd4 {[%emt 0:00:35]} Rd7+ {[%emt 0:00:23]} 38. Ke5 {[%emt 0:00:25]} Rd2 {[%emt 0:00:29]} 39. Kxf5 {[%emt 0:01:08]} Rxf2+ {[%emt 0:00:08]} 40. Kxe4 {[%emt 0:00:00]} Rc2 {[%emt 0:00:00]} 41. Kd4 {[%emt 0:05:26]} Rg2 {[%emt 0:03:21]} 42. Rxh6 {[%emt 0:01:15]} Rxg3 {[%emt 0:00:01]} 43. Rb6 {[%emt 0:01:05]} g4 {[%emt 0:03:25]} 44. Rxb7 {[%emt 0:00:18] Threatening mate with b5.} Rh3 {[%emt 0:01:07]} 45. b5 {[%emt 0:12:41][%cal Bb4b5,Bb5a6,Ba6a7][%mdl 32]} g3 {[%emt 0:03:34]} 46. Ke3 {[%emt 0:04:30]} ({Weaker is} 46. bxa6 g2 47. Rb1 Rh4+ 48. Ke3 Rxh5 $14) 46... Rxh5 {[%emt 0:00:26]} 47. bxa6 {[%emt 0:02:14] White mates.} Rxa5 {[%emt 0:00:47]} 48. a7 {[%emt 0:00:27]} Ra3+ {[%emt 0:00:06] [#]} 49. Ke2 $1 {[%emt 0:00:23]} Ra2+ {[%emt 0:00:07]} 50. Kf1 {[%emt 0:00:14] Weighted Error Value: White=0.10 (very precise) /Black=0.49} 1-0

[Event "Hungarian Youth-ch U18 2022"]
[Site "Eger"]
[Date "2022.07.27"]
[Round "5.3"]
[White "Forgacs, Attila Jr."]
[Black "Karacsonyi, Gellert"]
[Result "0-1"]
[ECO "B12"]
[WhiteElo "2215"]
[BlackElo "2338"]
[Annotator "TA"]
[PlyCount "96"]
[EventDate "2022.07.21"]
[EventType "tourn"]
[EventCountry "HUN"]
[SourceTitle "playchess.com"]
[Source "ChessBase"]
[SourceQuality "1"]
[TimeControl "40/5400+30:1800+30"]

{[%evp 9,96,18,0,0,0,0,0,0,1,0,0,0,0,0,0,-4,0,0,25,16,26,10,4,18,15,0,16,17,25,22,22,11,13,0,12,0,31,-40,13,-63,-20,-68,-8,-102,-104,-162,-171,-278,-254,-436,-473,-503,-119,-493,-292,-305,-305,-301,-265,-294,-286,-349,-346,-357,-329,-439,-434,-736,-723,-839,-829,-29986,-29987,-29987,-29988,-2170,-739,-695,-697,-1214,-1196,-29990,-29991,-29991,-1047,-1227,-1042,-772,-760]} 1. e4 {[%emt 0:00:33]} c6 {[%emt 0:00:39]} 2. d4 {[%emt 0:00:16]} d5 {[%emt 0:00:10]} 3. e5 {[%emt 0:00:50]} c5 {[%emt 0:00:12]} 4. dxc5 {[%emt 0:00:17]} e6 {[%emt 0:00:14]} 5. a3 {[%emt 0:00:51]} Bxc5 {[%emt 0:01:06]} 6. b4 {[%emt 0:01:01] B12: Caro-Kann: Advance Variation.} Be7 {[%emt 0:00:50]} 7. Nf3 {[%emt 0:02:05]} a5 {[%emt 0:02:37]} 8. b5 {[%emt 0:02:21] The position is equal.} (8. Bb5+ Bd7 9. Bxd7+ Nxd7 $15) 8... Nd7 {[%emt 0:00:25]} 9. Bb2 {[%emt 0:01:12]} Nh6 {[%emt 0:02:19]} 10. c4 {[%emt 0:03:53]} dxc4 {[%emt 0:04:05]} 11. Bxc4 {[%emt 0:00:39]} b6 {[%emt 0:02:15]} 12. O-O {[%emt 0:13:57]} Bb7 {[%emt 0:03:12] [#]} 13. Nbd2 $146 {[%emt 0:01:38]} ({Predecessor:} 13. Qe2 Rc8 14. Nbd2 O-O 15. Ne4 Rc7 16. Nd6 Bxf3 17. gxf3 Nxe5 18. Bxe5 Bxd6 19. Rfd1 {½-½ (38) Tarasenko,I (2005)-Den,D (2166) Tuapse 2022}) 13... a4 {[%emt 0:04:49]} 14. Qe2 {[%emt 0:05:16]} Nc5 {[%emt 0:01:34]} 15. Rfd1 {[%emt 0:00:59][%cal Od2e4]} Qc7 {[%emt 0:01:27]} 16. Nd4 {[%emt 0:05:50]} O-O {[%emt 0:01:36]} 17. N2f3 {[%emt 0:01:55]} (17. Rac1 {seems wilder.} Rad8 18. h3 Bg5 19. g3) 17... Rac8 {[%emt 0:03:44]} 18. Rac1 {[%emt 0:03:22]} Qb8 {[%emt 0:04:57]} 19. h3 {[%emt 0:04:35]} Rfd8 {[%emt 0:05:53]} 20. Ba2 {[%emt 0:10:04]} Qa8 {[%emt 0:03:36]} 21. Bb1 {[%emt 0:04:22]} g6 {[%emt 0:03:59]} 22. Qe3 {[%emt 0:03:56]} Bf8 {[%emt 0:01:38][%cal Oc5b3]} 23. Nh4 {[%emt 0:08:01]} ({Better is} 23. g4 $14) 23... Bg7 {[%emt 0:00:48]} ({Black should try} 23... Nb3 $15 24. Nxb3 Rxd1+ 25. Rxd1 axb3) 24. f4 {[%emt 0:00:53]} (24. g4 $11) 24... Kh8 {[%emt 0:00:57][%cal Oc5b3]} (24... Nb3 $5 25. Nxb3 Rxd1+ 26. Rxd1 axb3 $11) 25. g4 {[%emt 0:01:35]} (25. Bc2 $11) 25... Ng8 {[%emt 0:10:32]} (25... Nb3 $1 $15 26. Rxc8 (26. Nxb3 Rxc1 27. Rxc1 axb3 $15) 26... Qxc8) 26. f5 {[%emt 0:01:49]} (26. Rf1 $11 {remains equal.}) 26... gxf5 $17 {[%emt 0:01:31]} 27. gxf5 {[%emt 0:12:19]} (27. Qf2 $17) 27... Bh6 $19 {[%emt 0:01:37]} 28. Qe2 {[%emt 0:01:21]} (28. Qf2 $142) 28... Ne7 {[%emt 0:02:17] And now ...Rg8+ would win.} 29. f6 $2 {[%emt 0:03:16]} (29. Rf1 Rg8+ 30. Kh2) 29... Rg8+ {[%emt 0:01:34]} 30. Kf1 {[%emt 0:00:05]} Be4 $2 {[%emt 0:14:13]} 31. Nc6 $2 {[%emt 0:03:41][%mdl 8192] This costs White the game.} (31. fxe7 $2 Bd3 $1 {[%mdl 512]} 32. Nc6 (32. Bxd3 Qh1+ 33. Kf2 Qh2+ 34. Ke1 Rg1+) 32... Bxe2+ $19) (31. Bxe4 $17 {was the crucial defense.} Nxe4 32. Rxc8 Nxc8 33. Qc2) 31... Bxb1 {[%emt 0:02:41]} (31... Bxc6 $142 32. bxc6 Qxc6 $1) 32. fxe7 {[%emt 0:00:19]} Rxc6 {[%emt 0:10:13]} (32... Bxc1 33. Bxc1 Rxc6 34. bxc6 Qxc6 35. Qf3 $17) 33. bxc6 {[%emt 0:01:12] [#]} Qxc6 $1 {[%emt 0:03:11] The board is on fire.} 34. Nf3 {[%emt 0:00:37]} (34. Rxb1 {gets mated.} Qh1+ 35. Kf2 Qh2+) (34. Rd8 Qh1+) 34... Bxc1 {[%emt 0:01:03]} 35. Rxc1 {[%emt 0:01:20]} Bf5 {[%emt 0:00:40]} ({Resist} 35... Bd3 36. Qxd3 Qb7 {[#]} 37. Rxc5 $1 {[%mdl 512]} bxc5 38. e8=Q Rxe8 39. Ng5 $1 $18) 36. Rd1 {[%emt 0:01:10] Inhibits Qd7.} Qb7 {[%emt 0:02:15]} 37. Bc1 {[%emt 0:00:47] Bg5 is the strong threat.} Qxe7 {[%emt 0:00:16]} 38. h4 {[%emt 0:00:33]} (38. Bf4 $142) 38... Ne4 {[%emt 0:00:01]} 39. Qc4 {[%emt 0:00:37]} Qb7 {[%emt 0:01:18][%cal Oe4d2] ( -> ...Nd2+!)} 40. Bf4 {[%emt 0:00:00] [#] Prevents Nd2+.} Nd2+ $1 {[%emt 0:00:00][%mdl 512]} 41. Nxd2 {[%emt 0:02:07]} Qh1+ {[%emt 0:03:44]} 42. Ke2 {[%emt 0:02:07]} Bg4+ {[%emt 0:00:30]} (42... Rg2+ $142 43. Ke3 Qxd1) 43. Kf2 {[%emt 0:01:54]} Qxd1 {[%emt 0:01:08]} 44. Qd3 {[%emt 0:07:38] Inhibits Bh3.} Bf5 {[%emt 0:00:43]} 45. Qd7 {[%emt 0:00:22]} Qg1+ {[%emt 0:00:18]} 46. Kf3 {[%emt 0:00:10]} Qg2+ {[%emt 0:00:56]} (46... Qh1+ $142 47. Ke3 Qe1+ 48. Kd4 Qg1+ 49. Be3 Rg4+ 50. Ne4 Rxe4+ 51. Kd3 Qxe3+ 52. Kc2 Rd4+ 53. Kb2 Qb3+ 54. Kc1 Qxa3#) 47. Ke3 {[%emt 0:00:06]} Qh3+ {[%emt 0:00:05]} 48. Nf3 {[%emt 0:00:54]} Bg4 {[%emt 0:00:23] Weighted Error Value: White=0.84/Black=0.34} 0-1

[Event "Hungarian Youth-ch U18 2022"]
[Site "Eger"]
[Date "2022.07.27"]
[Round "5.4"]
[White "Toth, Nikoletta"]
[Black "Juhasz, Judit"]
[Result "1/2-1/2"]
[ECO "A05"]
[WhiteElo "1914"]
[BlackElo "2037"]
[Annotator "TA"]
[PlyCount "89"]
[EventDate "2022.07.21"]
[EventType "tourn"]
[EventCountry "HUN"]
[SourceTitle "playchess.com"]
[Source "ChessBase"]
[SourceQuality "1"]
[TimeControl "40/5400+30:1800+30"]

{[%evp 10,89,19,24,29,0,5,0,14,3,27,15,1,0,27,4,57,-122,-108,-108,-87,-84,-88,-235,-195,-280,-281,-310,-95,-114,-109,-116,-104,-104,-112,-127,-47,-143,-106,-140,-121,-164,-171,-190,-168,-180,-135,-146,-130,-192,-104,-234,-229,-250,-225,-187,0,0,160,96,105,101,103,113,57,66,353,332,329,0,0,0,287,287,266,0,0,0,0,0,0,0]} 1. Nf3 {[%emt 0:00:34]} Nf6 {[%emt 0:02:32]} 2. g3 {[%emt 0:00:08]} g6 {[%emt 0:00:05]} 3. b3 {[%emt 0:00:03]} Bg7 {[%emt 0:00:05]} 4. Bb2 {[%emt 0:00:04]} d6 {[%emt 0:00:06]} 5. d4 {[%emt 0:00:05]} O-O {[%emt 0:00:06]} 6. Bg2 {[%emt 0:00:03]} b5 {[%emt 0:00:05] [#] A49: 1 d4 Nf6 2 Nf3 g6 3 g3: Anti-King's Indian systems.} 7. Nh4 $146 {[%emt 0:07:47]} ({Predecessor:} 7. Ne5 dxe5 8. Bxa8 c6 9. a4 b4 10. dxe5 Nd5 11. Qd4 Nb6 12. Qxb4 Na6 13. Qe4 Nxa8 14. Qxc6 {0-1 (54) Jones,G (2672)-Sadhwani,R (2616) Chess.com INT 2022}) 7... c6 {[%emt 0:01:46]} 8. O-O {[%emt 0:00:32]} Bb7 {[%emt 0:00:59]} 9. c4 {[%emt 0:06:57]} a6 {[%emt 0:04:06]} 10. e4 {[%emt 0:16:42]} Nbd7 {[%emt 0:05:55]} 11. Nd2 {[%emt 0:09:39]} (11. e5 Ne8 12. Na3) 11... Qc7 {[%emt 0:04:42]} 12. f4 e5 (12... Ne8) ({Black should try} 12... Ne8 $11) 13. Nhf3 $2 {[%emt 0:08:07]} (13. c5) (13. c5 $1 $14 {stays ahead.}) 13... exf4 $17 {[%emt 0:07:50]} 14. gxf4 {[%emt 0:00:11]} Nh5 {[%emt 0:00:11]} 15. Ne1 {[%emt 0:02:56]} c5 {[%emt 0:00:29]} 16. Nc2 {[%emt 0:00:40]} (16. Rc1) (16. Nd3 $17 {is a better defense.}) 16... cxd4 {[%emt 0:01:33]} (16... f5 17. Ne3) (16... f5 17. Ne3) 17. Nb4 {[%emt 0:04:31]} (17. Nxd4 Qb6 18. e5 Bxg2 19. Kxg2 dxe5) (17. Bxd4 Bxd4+ 18. Nxd4) ({Of course not} 17. Nxd4 Qb6 18. e5 Bxg2 19. Kxg2 dxe5) (17. Bxd4 $142 Bxd4+ 18. Nxd4) 17... Nc5 $19 {[%emt 0:02:05]} 18. cxb5 {[%emt 0:08:01]} a5 {[%emt 0:06:33]} (18... axb5 19. f5 Be5) (18... axb5 $19 {has better winning chances. White must now prevent ...f5.} 19. f5 Be5) 19. Nd5 $17 {[%emt 0:01:55]} Bxd5 {[%emt 0:00:07]} 20. exd5 {[%emt 0:00:03]} Nd3 {[%emt 0:00:21][%csl LRb2,LRf4]} 21. Ba3 {[%emt 0:01:26][%cal Ob5b6]} Ndxf4 {[%emt 0:09:29] Hoping for ...d3.} 22. Nc4 {[%emt 0:00:07]} Rfd8 {[%emt 0:01:08]} (22... Be5 23. b6 Qd8) (22... Be5 $17 {And now ...d3 would win.} 23. Nxe5 dxe5 24. Bxf8 Rxf8) 23. Qf3 {[%emt 0:04:32]} (23. b6 Qb7 24. Bxd6 Rxd6 25. Nxd6 Qxb6 26. Nc4) (23. b6 $15 Qb7 24. Bf3) 23... d3 {[%emt 0:05:57]} 24. Rad1 {[%emt 0:00:29]} a4 $36 {[%emt 0:01:20][%mdl 2048] Black is on the roll.} 25. Kh1 {[%emt 0:03:49]} (25. b6 Qb8 26. Bc1) 25... axb3 {[%emt 0:07:19]} 26. axb3 {[%emt 0:00:05] [#]} Rxa3 $1 {[%emt 0:02:08][%mdl 512]} 27. Nxa3 {[%emt 0:00:06]} Qc5 {[%emt 0:00:55][%mdl 64] Deflection} (27... Qc3 28. Rb1 Qc5) 28. Nc4 {[%emt 0:03:07]} Qxb5 {[%emt 0:00:16]} 29. Rb1 {[%emt 0:00:54]} (29. Qe4 Be5 30. Nxe5 dxe5 31. Qxe5 Nxg2 32. Kxg2) (29. Qe4 $17 Be5 30. Nxe5 dxe5 31. Qxe5 Nxg2 32. Kxg2) 29... Qc5 {[%emt 0:10:47]} (29... Be5 $19 30. Na3 Qb4) 30. Qe4 {[%emt 0:00:38] [#]} (30. Qf2 $17) 30... f5 $1 $19 {[%emt 0:13:25]} 31. Qe3 {[%emt 0:05:03]} Bd4 {[%emt 0:00:45]} ({And not} 31... Qxe3 32. Nxe3 Rc8 33. Bf3) 32. Qd2 {[%emt 0:00:58]} Nxd5 {[%emt 0:04:12] Pair of Knights!} (32... Nxg2 $19 33. Qxg2 Be5) 33. Rxf5 $11 {[%emt 0:00:22]} Nhf6 {[%emt 0:09:00]} (33... gxf5 $11 34. Qg5+ Kf7 35. Qxd8 Nhf6) 34. Qg5 {[%emt 0:00:20]} (34. Bxd5+ Nxd5 35. Qg5) ({Better is} 34. Bxd5+ Nxd5 35. Qg5) 34... Be5 $16 {[%emt 0:00:19]} 35. Nxe5 {[%emt 0:01:13][%mdl 64] Remove Defender. The board is on fire.} dxe5 {[%emt 0:00:35]} 36. Rxf6 {[%emt 0:00:33]} Nxf6 {[%emt 0:00:32]} 37. Qxf6 {[%emt 0:00:04]} Rf8 {[%emt 0:00:19][%mdl 8192]} (37... Qd4 $1 $14) 38. Qe6+ $18 {[%emt 0:02:37]} Kh8 {[%emt 0:00:03]} 39. Qd5 $2 {[%emt 0:00:08]} ({Only move:} 39. Rf1 $18) 39... Qxd5 $11 {[%emt 0:01:17]} 40. Bxd5 {[%emt 0:00:00] KRB-KR} Rd8 $2 {[%emt 0:00:00][%mdl 8192] [#]} (40... Rf4 $1 $11) 41. Bc4 $1 $18 {[%emt 0:01:02]} e4 {[%emt 0:03:31]} 42. Rd1 $2 {[%emt 0:01:25]} (42. Kg2 $18) 42... Kg7 $1 $11 {[%emt 0:03:55] The position is equal.} 43. Kg2 {[%emt 0:08:11] Strongly threatening Kf2.} Kf6 $1 {[%emt 0:01:07]} 44. Kf2 {[%emt 0:01:05]} Ke5 {[%emt 0:00:06]} 45. Ke3 {[%emt 0:20:58] Quite a comeback for White.  Weighted Error Value: White=0.47/Black=0.47} 1/2-1/2

[Event "Hungarian Youth-ch U18 2022"]
[Site "Eger"]
[Date "2022.07.27"]
[Round "5.5"]
[White "Buri, Kata"]
[Black "Sulyok, Eszter"]
[Result "1-0"]
[ECO "B41"]
[WhiteElo "1730"]
[BlackElo "2091"]
[Annotator "TA"]
[PlyCount "63"]
[EventDate "2022.07.21"]
[EventType "tourn"]
[EventCountry "HUN"]
[SourceTitle "playchess.com"]
[Source "ChessBase"]
[SourceQuality "1"]
[TimeControl "40/5400+30:1800+30"]

{[%evp 12,63,37,15,55,56,64,53,76,91,89,79,145,-56,-54,-44,52,-115,357,195,188,-239,-250,-218,650,657,1720,1719,1507,1498,1470,1466,1438,999,29987,29988,2731,1907,29987,29988,29989,29990,29990,29991,29991,29992,29992,29991,29994,29995,29995,29996,29996,29997]} 1. e4 {[%emt 0:06:03]} c5 {[%emt 0:00:35]} 2. Nf3 {[%emt 0:00:30]} e6 {[%emt 0:00:58]} 3. d4 {[%emt 0:00:37]} cxd4 {[%emt 0:00:20]} 4. Nxd4 {[%emt 0:00:08]} a6 {[%emt 0:00:53]} 5. c4 {[%emt 0:00:58]} Nf6 {[%emt 0:01:27]} 6. Nc3 {[%emt 0:01:09]} Qc7 {[%emt 0:00:12]} 7. Qd3 {[%emt 0:01:33]} d6 {[%emt 0:03:12] B41: Sicilian: Kan Variation: 5 c4.} 8. Be2 {[%emt 0:02:14]} b6 {[%emt 0:01:51]} 9. Bg5 {[%emt 0:01:21]} Bb7 {[%emt 0:06:17] [#] White is slightly better.} 10. Bxf6 $146 {[%emt 0:06:51]} ({Predecessor:} 10. O-O Nbd7 11. f4 Nc5 12. Qe3 Ncxe4 13. Bxf6 Nxf6 {½-½ (13) Glasz,A-Bolvary,T (2010) Hungary 2004}) 10... gxf6 {[%emt 0:00:09]} 11. f4 {[%emt 0:00:28]} Nd7 {[%emt 0:01:27]} (11... Nc6 $142) 12. b4 $2 {[%emt 0:02:52] [#]} (12. f5 $16) 12... d5 $1 $15 {[%emt 0:03:25]} 13. exd5 {[%emt 0:04:12]} Qxf4 {[%emt 0:04:46]} (13... Bxb4 $15 14. O-O Bxc3 15. Qxc3 Bxd5) 14. dxe6 $2 {[%emt 0:03:05] Active counter play!} (14. Rf1 $14 {keeps the upper hand.} Qxh2 15. dxe6) 14... fxe6 $2 {[%emt 0:02:29][%mdl 8192]} (14... Ne5 $17 {stays on course.} 15. Qd2 Qxd2+ 16. Kxd2 Rd8) 15. Nxe6 $40 {[%emt 0:13:21][%mdl 128] White attacks with force.} (15. Bh5+ $142 Ke7 16. Rd1 (16. Nf3 $2 Ne5 $19) 16... Qe5+ 17. Nce2 (17. Nde2 Rd8 $11)) 15... Qe5 $18 {[%emt 0:01:57]} 16. O-O-O $4 {[%emt 0:18:12][%mdl 8192]} Qxe6 $19 {[%emt 0:09:31]} 17. Bh5+ {[%emt 0:00:10]} Kd8 $4 {[%emt 0:00:08][%mdl 8192]} (17... Ke7 $19 18. Bf7 (18. Rhe1 $2 Ne5 $19) 18... Ne5 19. Bxe6 Nxd3+ 20. Rxd3 Kxe6) 18. Rhe1 $18 {[%emt 0:00:43]} Bh6+ {[%emt 0:00:09]} 19. Kb1 {[%emt 0:00:16]} Qc6 {[%emt 0:01:04]} 20. Bg4 {[%emt 0:02:19][%cal Rg4d7]} Bc8 {[%emt 0:14:21]} 21. Bf3 {[%emt 0:02:13][%mdl 64] [#] Skewer, Deflection} Qc7 {[%emt 0:00:08]} 22. Bxa8 {[%emt 0:01:34]} Bg7 {[%emt 0:07:38]} 23. Qe4 {[%emt 0:01:40][%csl Ge1][%cal Re4e7]} Qe5 {[%emt 0:00:37]} 24. Qf3 {[%emt 0:02:13]} Qxh2 {[%emt 0:02:05]} 25. Qc6 {[%emt 0:02:41] White mates.} Qb8 {[%emt 0:02:26]} 26. Nd5 {[%emt 0:01:04]} Re8 {[%emt 0:00:37]} 27. Rxe8+ {[%emt 0:01:01]} Kxe8 {[%emt 0:00:06]} 28. Qe6+ {[%emt 0:04:13]} Kf8 {[%emt 0:00:06]} 29. Re1 {[%emt 0:00:54][%csl Ge1][%cal Re6e8]} Ne5 {[%emt 0:00:56]} 30. Qe7+ {[%emt 0:00:22]} Kg8 {[%emt 0:00:07]} 31. Nxf6+ {[%emt 0:00:25]} Bxf6 {[%emt 0:00:42]} 32. Bd5+ {[%emt 0:00:52] Weighted Error Value: White=1.04/Black=1.41} 1-0